Cogmind - Beta 17 @@@ ROGUE MODE // 2026.07.05 @ 19:24:22 Player: Robbedoes2000 Result: Destroyed by G-47 Trooper with Particle Gun Performance ------------- Evolutions (1) 500 Regions Visited (2) 400 Robots Destroyed (14) 70 Value Destroyed (432) 432 Prototype IDs (7) 140 Alien Tech Used (0) 0 Bonus (5550) 5550 TOTAL SCORE: 7092 Bonus ------- Prayed to X0-1V1 5000 Major X0-1V1 Interference 550 Cogmind --------- Core Integrity 0/400 Matter 300/300 Energy 59/100 System Corruption 0% Temperature Cool (66) Movement Core (200) Ox3 Location -9/Materials Parts ------- > --- POWER (1) -------- (None) > --- PROPULSION (3) --- (None) > --- UTILITY (3) ------ Small Storage Unit Improved Terrain Scanner X0-1V1's Piety Tracker > --- WEAPON (2) ------- Advanced Beam Cannon > --- INVENTORY (8) ---- Sensor Array ECM Suite Propulsion Shielding Improved EM Shotgun Improved EM Shotgun Peak State ------------ > --- POWER ------------ Ion Engine > --- PROPULSION ------- Aluminum Leg Aluminum Leg Aluminum Leg > --- UTILITY ---------- Small Storage Unit Improved Terrain Scanner X0-1V1's Piety Tracker > --- WEAPON ----------- Improved EM Shotgun Improved EM Shotgun > --- INVENTORY -------- Ion Engine Sensor Array Propulsion Shielding Improved EM Shotgun Improved EM Shotgun EMP Blaster Mining Laser [Rating: 28] Favorites ----------- Power Ion Engine Engine Ion Engine Propulsion Aluminum Leg Leg Aluminum Leg Wheel Armored Wheel Utility Small Storage Unit Device Improved Terrain Scanner Storage Small Storage Unit Processor Signal Interpreter Protection Core Shielding Weapon Mining Laser Energy Gun Improved EM Shotgun Energy Cannon Advanced Beam Cannon Ballistic Gun Light Assault Rifle Launcher EMP Blaster Special Weapon Mining Laser Build | -11 -10 -9 ------- Run | Yrd Mat Mat Slots Evolved 2 | . . 2 Power . | . . . Propulsion 1 | . . 1 Utility 1 | . . 1 Weapon . | . . . Parts Attached 24 | 9 5 10 Power 2 | 1 . 1 Engine 2 | 1 . 1 Core . | . . . Reactor . | . . . Propulsion 4 | 2 . 2 Treads . | . . . Leg 3 | 2 . 1 Wheel 1 | . . 1 Hover . | . . . Flight . | . . . Utility 8 | 2 4 2 Device 3 | 1 1 1 Storage 2 | 1 1 . Processor 2 | . 1 1 Hackware . | . . . Protection 1 | . 1 . Artifact . | . . . Weapon 10 | 4 1 5 Energy Gun 5 | 1 1 3 Energy Cannon 1 | . . 1 Ballistic Gun 2 | 2 . . Ballistic Cannon . | . . . Launcher 1 | . . 1 Special Weapon 1 | 1 . . Impact Weapon . | . . . Slashing Weapon . | . . . Piercing Weapon . | . . . Special Melee Weapon . | . . . Unidentified Prototypes 3 | . 1 2 Parts Lost 8 | . . 8 Power 2 | . . 2 Propulsion 3 | . . 3 Utility . | . . . Weapon 3 | . . 3 Highest Loss Streak 4 | . . 4 To Critical Strikes . | . . . Average Backups 6 | 3 6 7 Power . | . 1 . Propulsion . | 1 2 . Utility 1 | . . 2 Weapon 3 | . 3 3 Tool/Special . | . . . Unused Backups 10 | . 1 9 Power . | . . . Propulsion 2 | . 1 1 Utility 3 | . . 3 Weapon 5 | . . 5 Tool/Special . | . . . Average Slot Usage (%) 92 | . 100 89 Engine 10 | . 14 9 Leg 26 | . 28 25 Device 19 | . 12 21 Storage 12 | . 14 11 Energy Gun 12 | . 15 11 Launcher 2 | . . 4 Special Weapon 7 | . 12 4 Peak Build Rating 28 | 9 21 28 Average Rating 18 | 5 9 24 On Entrance 10 | . 9 21 Avg Prop Armor Cover (%) 13 | . . 13 Naked Turns . | . . . Heaviest Build 19 | 14 16 19 Greatest Support 30 | 20 20 30 Greatest Overweight (x) 3 | . . 3 Average Overweight (x) . | . . . Largest Inventory Capacity 8 | 8 8 8 Average Capacity 7 | 7 8 8 Most Carried 8 | 5 8 8 Average Carried 6 | 3 6 7 Final Capacity 8 | 8 8 8 Final Carried 8 | 5 8 5 Class Distribution -------------------- 100% | Mutant Dominant Class ---------------- Mutant | -10/Materials Mutant | -9/Materials Resources | -11 -10 -9 ----------- Run | Yrd Mat Mat Matter Collected 557 | 283 94 180 Remotely . | . . . Salvage Created 513 | 27 47 439 Parts 38 | 3 2 33 Haulers Intercepted . | . . . Recyclers Shooed . | . . . Parts Field Recycled . | . . . Retrieved Matter . | . . . Parts Self-Destructed . | . . . Prevented . | . . . Parts Restored . | . . . Kills | -11 -10 -9 ------- Run | Yrd Mat Mat Combat Hostiles Destroyed 11 | . 1 10 Guns 7 | . 1 6 Cannons 1 | . . 1 AOE 3 | . . 3 Classes Destroyed 6 | 2 1 3 Worker 1 | 1 . . Tunneler 1 | 1 . . Recycler 1 | . . 1 Swarmer 3 | . . 3 Grunt 5 | . 1 4 Sentry 3 | . . 3 Best Kill Streak 7 | 1 1 7 Combat Bots Only 6 | . 1 6 Max Kills in Single Turn 2 | 1 1 2 Gunslinging 1 | . . 1 Exploded 1 | . . 1 Melee . | . . . Uniques/NPCs Destroyed . | . . . Combat | -11 -10 -9 -------- Run | Yrd Mat Mat Hostile Shots Fired 113 | . 1 112 Missed 35 | . . 35 Hits 78 | . 1 77 Projectile 78 | . 1 77 Critical Strikes 2 | . . 2 Damage Taken 1201 | . 12 1189 Core 401 | . . 401 Absorbed by Shields . | . . . Core Remaining (%) 100 | 100 100 . Volleys Fired 52 | 5 11 36 Largest 2 | 1 2 2 Hottest 145 | 100 100 145 Shots Fired 70 | 5 12 53 Gun 34 | 2 4 28 Cannon 3 | . . 3 Launcher 1 | . . 1 Special 32 | 3 8 21 Kinetic . | . . . Thermal 40 | 5 11 24 Explosive . | . . . Electromagnetic 30 | . 1 29 Robot Hit Streak 9 | 2 4 9 Robot Miss Streak 3 | 2 1 3 Penetration Max . | . . . Secondary Targets 1 | . . 1 Max Gunslinging Chain 1 | . . 1 Shots Hit Robots 35 | 3 3 29 Core Hits 27 | 2 2 23 Critical Kills . | . . . Critical Parts Destroyed . | . . . Critical Strikes . | . . . Melee Attacks . | . . . Impact . | . . . Slashing . | . . . Piercing . | . . . Sneak Attacks . | . . . Combat Hostiles . | . . . Follow-up Attacks . | . . . Damage Inflicted 779 | 49 45 685 Guns 392 | 25 45 322 Cannons 40 | . . 40 Explosions 213 | . . 213 Melee . | . . . Ramming 14 | . . 14 Kinetic . | . . . Thermal 304 | 49 26 229 Explosive 43 | . . 43 Electromagnetic 418 | . 19 399 Impact . | . . . Slashing . | . . . Piercing . | . . . Highest Corruption . | . . . Average Corruption . | . . . Corruption Purged . | . . . Corruption Blocked . | . . . Overload Shots . | . . . Overflow Damage 27 | . . 27 Projectiles . | . . . Explosions 27 | . . 27 Melee . | . . . Knockbacks . | . . . Impact . | . . . Kinetic . | . . . Secondary . | . . . Self-Inflicted Damage 141 | . . 141 Shots 4 | . . 4 Rammed 2 | . . 2 Targets Rammed 14 | . . 14 Kicked 12 | . . 12 Crushed . | . . . Highest Temperature 195 | 40 60 195 Average Temperature 32 | 16 20 39 Received Heat Transfer 546 | . 6 540 Siege Activations . | . . . Martial Activations . | . . . Shielding Activations . | . . . Robots Disrupted . | . . . Combat Hostiles . | . . . Robots Corrupted . | . . . Combat Hostiles . | . . . Parts Fried . | . . . Impact Corruptions . | . . . Robots Melted . | . . . Combat Hostiles . | . . . Parts Melted 1 | . . 1 Heat Transferred 622 | 124 74 424 Parts Sabotaged . | . . . Parts Stolen . | . . . Parts Stripped . | . . . Power Chain Reactions 2 | . . 2 Alert | -11 -10 -9 ------- Run | Yrd Mat Mat Maximum Alert Level 1 | . . 1 Low Security (%) 94 | 100 100 90 Level 1 5 | . . 9 Level 2 . | . . . Level 3 . | . . . Level 4 . | . . . Level 5 . | . . . High Security . | . . . Max Security . | . . . Peak Influence 218 | 5 30 218 Initial 12 | . 3 12 Average 42 | . 2 65 Influence Increases 507 | 10 41 456 Destroy 0b10 Robot/C 220 | . 20 200 Destroy 0b10 Robot/NC 15 | 10 . 5 Destroy Leader 60 | . 10 50 Successful Hack 23 | . 5 18 Disable Machine 105 | . . 105 Destroy Structure 54 | . 6 48 Lose Combat Pursuer 30 | . . 30 Influence Decreases 303 | 5 16 282 Entered New Map 20 | . 2 18 Time Decay 203 | 5 14 184 Lost Part 80 | . . 80 Squads Dispatched 6 | . 2 4 Investigation 1 | . 1 . Extermination . | . . . Reinforcement 5 | . 1 4 Assault . | . . . Garrison . | . . . Intercept . | . . . Searches Triggered . | . . . Construction Impeded 1 | . . 1 Haulers Reinforced . | . . . Active Scanning Responses . | . . . Cargo Convoy Interrupts . | . . . Stealth | -11 -10 -9 --------- Run | Yrd Mat Mat Distress Signals 4 | . 2 2 Communications Jammed . | . . . Distress Signals . | . . . Times Spotted 31 | . 2 29 Peak Tracking Total 7 | . 2 7 Tactical Retreats 2 | . . 2 Traps | -11 -10 -9 ------- Run | Yrd Mat Mat Traps Triggered 1 | . 1 . Indirectly . | . . . Trap Hack Attempts . | . . . Triggered . | . . . Disarmed . | . . . Reprogrammed . | . . . Reused . | . . . Traps Extracted . | . . . Installed . | . . . Triggered . | . . . Machines | -11 -10 -9 ---------- Run | Yrd Mat Mat Machines Disabled 7 | . . 7 Max in Single Turn 2 | . . 2 Machines Repaired . | . . . Machines Dismantled . | . . . Machines Sabotaged . | . . . Overloaded Fab Kills . | . . . Hacking | -11 -10 -9 --------- Run | Yrd Mat Mat Machines Accessed 11 | . 5 6 Terminals 8 | . 4 4 Fabricators . | . . . Repair Stations . | . . . Recycling Units 3 | . 1 2 Scanalyzers . | . . . Garrison Access . | . . . Total Hacks 30 | . 15 15 Successful 19 | . 9 10 Failed 11 | . 6 5 Catastrophic 2 | . 2 . Database Lockouts . | . . . Manual 4 | . 4 . Terminals 24 | . 12 12 Fabricators . | . . . Repair Stations . | . . . Recycling Units 6 | . 3 3 Scanalyzers . | . . . Garrison Access . | . . . Terminal Hacks 13 | . 6 7 Record 3 | . 2 1 Prototype ID Bank 2 | . 1 1 Terminal Index 1 | . 1 . Locate Traps 2 | . 1 1 Dispatch Records 2 | . . 2 Maintenance Status 1 | . . 1 Hauler Manifests 1 | . . 1 Zone Layout 1 | . 1 . Fabricator Hacks . | . . . Repair Station Hacks . | . . . Recycling Unit Hacks 6 | . 3 3 Process 2 | . 1 1 Report Inventory 3 | . 1 2 Retrieve Matter 1 | . 1 . Scanalyzer . | . . . Garrison Access Hacks . | . . . Unauthorized Hacks . | . . . Terminals . | . . . Fabricators . | . . . Repair Stations . | . . . Recycling Units . | . . . Scanalyzers . | . . . Garrison Access . | . . . Data Cores Recovered . | . . . Used . | . . . Hacking Detections 7 | . 4 3 Full Trace Events . | . . . Feedback Events . | . . . Feedback Blocked . | . . . Robot Schematics Acquired . | . . . Robots Built . | . . . Authchips . | . . . Time . | . . . Total Robot Build Rating . | . . . Part Schematics Acquired . | . . . Parts Built . | . . . Authchips . | . . . Time . | . . . Total Part Build Rating . | . . . Part Studies Acquired . | . . . Parts Repaired . | . . . Time . | . . . Parts Recycled . | . . . Recycled Matter 9 | . 3 6 Retrieved Matter 3 | . 3 . Retrieved Components . | . . . Parts Scanalyzed . | . . . Part Schematics Acquired . | . . . Parts Damaged . | . . . Bothacking | -11 -10 -9 ------------ Run | Yrd Mat Mat Used RIF Installer . | . . . Robots Hacked . | . . . Non-combat . | . . . Combat . | . . . Robot Hacks Applied . | . . . Relay Couplers Released . | . . . Fabnet Peak Effective % . | . . . Robots Rewired . | . . . Allies Hacked . | . . . Hacks Repelled . | . . . Allies | -11 -10 -9 -------- Run | Yrd Mat Mat Total Allies . | . . . Largest Group . | . . . Highest-Rated Group . | . . . Highest-Rated Ally . | . . . Total Orders . | . . . Ally Attacks . | . . . Total Damage . | . . . Kills . | . . . Allies Corrupted . | . . . Allies Melted . | . . . X0-1V1 Amusement Gains 96 | . 11 85 Good Acts 1 | . . 1 Bad Acts 3 | . . 3 Intel | -11 -10 -9 ------- Run | Yrd Mat Mat Active Infowar (turns) 850 | 28 231 591 Terrain 850 | 28 231 591 Robot Analysis Total . | . . . Derelict Logs Recovered . | . . . Drone Launches . | . . . Drone Recoveries . | . . . Exploration | -11 -10 -9 ------------- Run | Yrd Mat Mat Turns Passed 981 | 116 239 626 Spaces Moved 490 | 70 148 272 Core 26 | 17 . 9 Treads . | . . . Legs 463 | 53 148 262 Wheels 1 | . . 1 Hover . | . . . Flight . | . . . Fastest Speed 50 | 50 120 105 Average Speed 133 | 103 120 147 Slowest Speed 200 | 120 120 200 Overloaded Moves . | . . . Propulsion Burnouts . | . . . Robots Hopped . | . . . Potential Cave-ins . | . . . Cave-ins Triggered . | . . . Exploration Rate (%) 26 | 5 37 37 Regions Visited 2 Branch Regions . Pre-discovered Areas . | . . . Known Exits Taken . | . . . Unknown Exits Taken 2 | 1 1 . Scrap Searched . | . . . Spaces Dug 20 | . 8 12 Terrain Destroyed 54 | . 8 46 Melee . | . . . Projectile 22 | . 8 14 AOE 32 | . . 32 Terrain Rammed . | . . . Walls Destroyed . | . . . Machines Disabled . | . . . Actions | -11 -10 -9 --------- Run | Yrd Mat Mat Total 672 | 101 182 389 Wait 28 | 4 1 23 Move 488 | 69 147 272 Hop . | . . . Pick Up 30 | 12 9 9 Fast Attach 6 | . . 6 Attach 17 | 7 3 7 Detach 2 | . . 2 Swap 17 | 4 5 8 Drop 18 | . 6 12 Fire 52 | 5 11 36 Melee . | . . . Ram 2 | . . 2 Kick 12 | . . 12 Crush . | . . . Escape Stasis . | . . . Rewire . | . . . Trap . | . . . Miscellaneous . | . . . Route ------- -11/Scrapyard -10/Materials (discovered 2 exits: *Mat x2) -9/Materials History --------- Turn | Location | Event 10 | -11/Scrapyard | Discovered new exit (range 16) 117 | -11/Scrapyard | Entered Materials 208 | -10/Materials | Prayed at D.C.S.S. Altar Unit 298 | -10/Materials | Discovered new exit (range 8) 332 | -10/Materials | Build established: Mutant 336 | -10/Materials | Discovered new exit (range 10) 356 | -10/Materials | Entered another Materials area 356 | -9/Materials | Evolved 2 slots: Propulsion x1, Utility x1 786 | -9/Materials | X0-1V1 announced a LAN party 934 | -9/Materials | Lost 4 parts (1p1n2w) 965 | -9/Materials | Core integrity fell below 50% 973 | -9/Materials | Core integrity fell below 20% 982 | -9/Materials | Destroyed by G-47 Trooper with Particle Gun Last Messages --------------- 00963_ EMP Blaster destroyed. 00964_ K-01 Serf collects debris. 00965_ ALERT: Hostiles spotted, dispatching reinforcements to Terminal M001. 00965_ A-02 Transporter destroyed. 00968_ K-01 Serf collects debris. 00970_ G-47 Trooper IFF system glitched. 00971_ K-01 Serf collects debris. 00972_ G-47 Trooper misfires. 00972_ ALERT: Hostiles spotted, dispatching reinforcements to Terminal M004. 00972_ X0-1V1 is amused. 00974_ G-47 Trooper misfires. 00975_ K-01 Serf collects debris. 00975_ Acquired Prototype Energy Cannon. 00976_ Identified Adv. Beam Cannon. 00977_ G-47 Trooper destroyed. 00978_ Acquired 10 matter. 00978_ K-01 Serf collects debris. 00982_ X0-1V1 guffaws! Map ----- +----------------------------------------------------+ | ??????????????????????? ?# # ########+??? | | ????????????????????? ???# # | | ?????????????????????????# + | | ??????????????????#? ????# # ""? | | ?????????????????????? ?## ###+####+## ""? | | ????????????????????? ??## # #???""? | | ???????????????#???#?????# " T #? ???? | | ????????????????????????##########" = #?????? | | ???????????????????? ?############ ##????? | | ??????????????????##? ?# [=*[###/######?????? | | ?????????????????#?????# =***#==! ##### #? | | ???????????????????? # """ [ [%#!%= #? | | ???????????#????#??# # """ =[=+ = #? | | ???????????????????# # """ "T=[#! / | | ???????????????????# # "" !# ##### # | | ???????????????? ?# # #######??#????#? | | ???????????????????# ###############???#???????? | | ?????????????????? # # #???????? ??? | | ???????????????????# # "" """"" #?#?????????? | | ???????????"?????"?# # "T= """"" ????????????? | | ???????????????????+ + "*%[ """"" #???????????? | | ???????????????????# # ##??????????? | | ??????????###+#????# [ # #??????????? | | ??????????# #### !!############/#######??????? | | ??????????# ! ==*gk]! ak ?????? | | ??????????# *k%%]@* r ?????? | | ??????????# [%=gg%%= ga g ?????? | | ??????????# #####+##################?????????? | | ???????????#????# %%% #????????#?????????????? | | ?????? ????#???## " #???#??????????????????? | | ???????"?????? ?# #????????? ????????????? | | ???????????????## """ " " #?????? ???????????????? | | ????????????????# [ #???????? ?????????????? | | ?????????"??????# #? ?? ???? ????????????? | | ????????????????###########?????????? ???????????? | | ???????????????? ?????????#??????? ??????????????? | | ??????????????????? ?????#?????? ? ??????????????? | | ??????????##?????????????????????????????????????? | | ???????????????????????????????#?? ??????????????? | | ????????????????????? ???????????????????????????? | | ????????????????????????#???#?#??????????????????? | | ???????????????????#?????????????????????????????? | | ??????????????????????#??#???????????????????????? | | ???????????????????????#?????????????????????????? | | ?????????????????????????????????????????????????? | | ?????????????????????????????????????????????????? | | ?????????????????????????????????????????????????? | | ?????????????????????????????????????????????????? | | ?????????????????????????????????????????????????? | | ?????????????????????????????????????????????????? | +----------------------------------------------------+ Best States ------------- Heat Dissipation 28 Energy Generation 10 Energy Capacity 450 Matter Stores 300 Matter Capacity 300 Sight Range 16 Terrain Scan Range 16 Terrain Scan Density 10 Evasion (%) 55 Targeting Accuracy 5 Trap Extractor Capacity 4 Item Schematics ----------------- None Robot Schematics ------------------ None Fabricated ------------ Nothing Repaired ---------- Nothing Studied --------- None Alien Tech Used ----------------- None Achievements -------------- Chaos Is Inevitable Challenges ------------ None Game ------ Seed ArmageddonEtherialChip Manual? 0 Play Time 00:20:53 Cumulative 1.8 hours Start 2026.07.05 @ 19:02:11 End 2026.07.05 @ 19:24:22 Sessions 1 Manual Loads 0 Difficulty Rogue Special Mode None Game No. 5 Rogue 5 Adventurer 0 Explorer 0 Win Type - Total 0 Types 0/0/0/0/0/0/0/0/0/0 Lore% 4 Gallery% 9 Achievement% 15 Wizard Run 0 Options --------- Layout 0 ASCII 0 Keyboard 0 Movement Mouse Keybinds 0 Fullscreen 2 Font 24/Smallcaps Map View 76x50 Zoom Use 0% Tactical HUD 1 Map Filters NONE Filters NONE Steam 1 RUN: 748b39c8-df21-43ce-acfc-9b81ef80315f